Cogmind - Beta 16 @@@ ROGUE MODE // 2026.01.31 @ 20:44:17 Player: Zaros426 Result: Destroyed by H-77 Assassin with Coil Gun Performance ------------- Evolutions (7) 3500 Regions Visited (22) 4400 Robots Destroyed (271) 1355 Value Destroyed (7449) 7449 Prototype IDs (91) 1820 Alien Tech Used (2) 400 Bonus (9594) 9594 TOTAL SCORE: 28518 Bonus ------- High Alert Combat Kills 976 Follower Combat Kills 2636 Network Hubs Disabled 600 Registered with UFD 300 Met Optimus in HQ 500 Met Zhirov 300 Met Warlord at Base 500 MAIN.C Attacked Warlord 500 Built Enhanced Grunts 300 Met R17 at Cetus 500 Hacked Protovariant 500 Met R17 at Research 2000 Friendly Fire -18 Cogmind --------- Core Integrity 0/1300 Matter 300/300 Energy 71/100 System Corruption 11% Temperature Cool (0) Movement Core (50) Location -3/Testing Parts ------- > --- POWER (2) -------- (None) > --- PROPULSION (8) --- (None) > --- UTILITY (9) ------ Deep Structural Scanner Spectral Analyzer Advanced Melee Analysis Suite Advanced Hacking Suite Experimental System Shield > --- WEAPON (2) ------- (None) > --- INVENTORY (5) ---- Long-range Terrain Scanner Advanced Terrain Scan Processor Graphene Brace Advanced Force Field Enhanced Force Lance Peak State ------------ > --- POWER ------------ Light Particle Reactor Light Particle Reactor > --- PROPULSION ------- Antigrav System Antigrav System Improved Gyrokinetic Inverter Improved Gyrokinetic Inverter Improved Gyrokinetic Inverter Improved Gyrokinetic Inverter Antigrav Array > --- UTILITY ---------- Large Storage Unit Spectral Analyzer Advanced Melee Analysis Suite Experimental Armor Integrity Analyzer Advanced Reaction Control System Improved Phase Shifter Experimental Shield Generator Advanced Hacking Suite Experimental System Shield > --- WEAPON ----------- Plasma Lance Enhanced Force Lance > --- INVENTORY -------- Deep Structural Scanner Long-range Terrain Scanner Advanced Terrain Scan Processor Seismic Detector Precision Energy Filter Advanced Transmission Jammer Advanced Reaction Control System Centrium Medium Armor Plating Graphene Brace Thermal Barrier Advanced Force Field Advanced Point Defense System Advanced Variable Charge Gun Mini Smartbomb Launcher [Rating: 159] Favorites ----------- Power Light Angular Momentum Engine Engine Light Angular Momentum Engine Power Core Backup Power VII Reactor Vortex Chain Reactor Propulsion Improved Gravmag System Treads Spiked Treads Leg High-density Centrium Leg Wheel Compact Wheel Hover Unit Improved Gravmag System Flight Unit VTOL Module Utility Large Storage Unit Device Seismic Detector Storage Large Storage Unit Processor Advanced Melee Analysis Suite Hackware Hacking Suite Protection Centrium Medium Armor Plating Weapon Companion Sword Energy Gun Advanced Variable Charge Gun Energy Cannon Beam Cannon Ballistic Gun Subdweller Machine Gun Launcher Improved Proton Missile Launcher Special Weapon CPS Tube Slashing Weapon Companion Sword Piercing Weapon Enhanced Force Lance Special Melee Weapon Advanced Datajack Build | -11 -10 -10 -8 -6 -6 -6 -6 -6 -5 -5 -5 -5 -4 -4 -4 -4 -4 -4 -4 -3 -3 -3 ------- Run | Yrd Mat Sub Scr Fac Ext Cet Arc Hub Fac Upp Upp War Pro Fac Was Fac Upp Upp Zhi Pro Res Tes Slots Evolved 14 | . . . . 8 . . . . 2 . . . . 2 . . . . . . 2 . Power 1 | . . . . . . . . . 1 . . . . . . . . . . . . . Propulsion 6 | . . . . 4 . . . . . . . . . 2 . . . . . . . . Utility 7 | . . . . 4 . . . . 1 . . . . . . . . . . . 2 . Weapon . | . . . . . . . . . . . . . . . . . . . . . . . Parts Attached 202 | 8 9 13 23 28 18 3 5 8 5 . . 12 . 2 . 11 3 1 4 2 33 14 Power 21 | 1 1 2 2 1 . 1 1 . 2 . . 1 . . . . . . 1 . 6 2 Engine 11 | 1 1 2 2 1 . 1 1 . 2 . . . . . . . . . . . . . Core . | . . . . . . . . . . . . . . . . . . . . . . . Reactor 10 | . . . . . . . . . . . . 1 . . . . . . 1 . 6 2 Propulsion 69 | 2 2 2 8 13 8 . 1 3 . . . 3 . . . 7 . . 1 2 11 6 Treads 8 | 2 . . 3 3 . . . . . . . . . . . . . . . . . . Leg 3 | . . . . . . . . . . . . . . . . . . . . . 2 1 Wheel 8 | . 2 2 4 . . . . . . . . . . . . . . . . . . . Hover 45 | . . . 1 8 7 . 1 3 . . . 2 . . . 7 . . . 2 9 5 Flight 5 | . . . . 2 1 . . . . . . 1 . . . . . . 1 . . . Utility 77 | 2 4 4 6 11 7 2 3 3 1 . . 5 . 2 . 3 3 1 2 . 14 4 Device 36 | 1 1 1 3 5 4 . . 2 . . . 3 . . . 1 3 1 . . 7 4 Storage 10 | 1 2 1 3 . . . . . . . . 1 . . . 1 . . 1 . . . Processor 7 | . . . . 2 1 . . 1 . . . 1 . . . . . . . . 2 . Hackware 14 | . 1 . . 2 . . 2 . 1 . . . . 2 . 1 . . . . 5 . Protection 10 | . . 2 . 2 2 2 1 . . . . . . . . . . . 1 . . . Artifact . | . . . . . . . . . . . . . . . . . . . . . . . Weapon 35 | 3 2 5 7 3 3 . . 2 2 . . 3 . . . 1 . . . . 2 2 Energy Gun 5 | 1 . 1 . . . . . 1 . . . 2 . . . . . . . . . . Energy Cannon 5 | . 2 1 . . 1 . . 1 . . . . . . . . . . . . . . Ballistic Gun 5 | 2 . 3 . . . . . . . . . . . . . . . . . . . . Ballistic Cannon . | . . . . . . . . . . . . . . . . . . . . . . . Launcher 6 | . . . 1 2 . . . . 1 . . . . . . 1 . . . . . 1 Special Weapon 2 | . . . 1 . . . . . . . . 1 . . . . . . . . . . Impact Weapon . | . . . . . . . . . . . . . . . . . . . . . . . Slashing Weapon 5 | . . . 3 1 1 . . . . . . . . . . . . . . . . . Piercing Weapon 3 | . . . . . . . . . . . . . . . . . . . . . 2 1 Special Melee Weapon 4 | . . . 2 . 1 . . . 1 . . . . . . . . . . . . . Unidentified Prototypes 26 | . . . 1 . . 1 . 1 . . . 8 . . . . 1 . 5 . 5 4 Parts Lost 58 | . 3 1 . 5 3 . 1 7 . . . . 1 . . 1 . . . 7 8 21 Power 9 | . . . . . . . 1 1 . . . . . . . . . . . 1 2 4 Propulsion 30 | . 2 . . 4 2 . . 2 . . . . . . . 1 . . . 5 4 10 Utility 14 | . . . . 1 1 . . 3 . . . . 1 . . . . . . . 1 7 Weapon 5 | . 1 1 . . . . . 1 . . . . . . . . . . . 1 1 . Highest Loss Streak 14 | . 3 1 . 3 1 . 1 6 . . . . 1 . . 1 . . . 4 5 14 To Critical Strikes . | . . . . . . . . . . . . . . . . . . . . . . . Average Backups 14 | 2 12 17 13 13 13 14 14 14 13 14 15 14 15 12 12 13 13 14 14 14 14 13 Power . | . . . . . . . . . . . . . . . . . . . . . . . Propulsion . | . . 1 1 . . 2 1 . 1 1 1 1 2 . . . . . . . . . Utility 9 | . 7 8 8 9 9 8 8 9 9 11 12 11 11 10 10 11 11 12 12 12 12 11 Weapon 3 | 1 3 6 3 2 3 3 3 2 2 1 1 1 1 2 2 1 1 2 2 2 2 2 Tool/Special . | . . . . . . . . . . . . . . . . . . . . . . . Unused Backups 55 | . 6 8 10 9 3 . 3 . . . . 3 . . 1 1 2 . 1 . 1 7 Power 5 | . 1 . 2 . 1 . . . . . . . . . . . . . . . . 1 Propulsion 1 | . . . . . 1 . . . . . . . . . . . . . . . . . Utility 35 | . 3 3 4 8 1 . 1 . . . . 3 . . 1 1 2 . 1 . 1 6 Weapon 10 | . 1 5 3 1 . . . . . . . . . . . . . . . . . . Tool/Special 4 | . 1 . 1 . . . 2 . . . . . . . . . . . . . . . Average Slot Usage (%) 90 | . 92 99 79 94 98 91 87 91 97 100 100 95 93 92 94 93 94 94 92 81 88 82 Engine 7 | . 14 14 9 6 6 10 10 10 8 11 11 4 . . . . . . . . . . Reactor 1 | . . . . . . . . . . . . 3 5 5 5 5 5 5 5 2 5 7 Treads 5 | . 14 . 14 4 . . . . . . . . . . . . . . . . . . Wheel 6 | . 7 28 12 2 . . . . . . . . . . . . . . . . . . Hover 19 | . . . . 26 34 37 37 37 35 35 35 34 35 40 42 41 42 42 42 34 30 28 Device 9 | . 11 8 13 7 7 7 6 10 8 16 17 9 15 11 5 5 5 5 2 4 3 8 Storage 9 | . 14 14 14 8 6 6 6 6 5 5 5 5 5 5 5 5 5 5 5 5 4 3 Processor 6 | . . . . 10 6 6 6 6 11 11 11 14 17 15 15 15 15 15 15 15 14 13 Hackware 5 | . 2 . . 5 12 12 3 10 10 5 5 1 . 3 10 10 10 10 10 10 18 9 Protection 2 | . . 5 . 5 4 4 10 1 2 . . 6 . . . . . . 1 . . . Energy Cannon 2 | . 11 11 . . . 6 6 5 . . . . . . . . . . . . . . Ballistic Gun 2 | . 10 16 . . . . . . . . . . . . . . . . . . . . Special Weapon 1 | . . . 5 . . . . . . . . . . . . . . . . . . . Slashing Weapon 3 | . . . 2 12 9 . . . 5 5 5 5 5 5 5 5 5 5 5 5 1 . Special Melee Weapon 2 | . . . 6 . 1 . . . 2 . . 4 2 5 5 4 4 5 5 2 . . Peak Build Rating 159 | 7 11 19 25 64 76 86 94 91 91 88 88 118 118 128 129 136 137 137 136 135 156 159 Average Rating 62 | 5 8 15 16 53 64 83 88 82 86 87 88 106 103 126 128 131 133 134 131 111 139 135 On Entrance 86 | . 7 11 16 22 60 76 86 91 74 88 88 88 118 112 126 129 136 134 134 135 91 156 Avg Prop Armor Cover (%) 8 | . . 4 21 9 2 . . 5 5 . . . . . . . . 3 4 6 11 8 Naked Turns . | . . . . . . . . . . . . . . . . . . . . . . . Heaviest Build 108 | 13 52 101 97 108 49 59 66 59 51 50 50 92 70 63 78 88 88 75 61 61 66 68 Greatest Support 104 | 40 40 40 43 67 71 60 60 60 66 66 66 68 66 92 92 104 82 82 69 69 99 100 Greatest Overweight (x) 28 | . 3 5 28 6 . . 1 . . . . 1 1 . . 1 1 1 . 2 1 1 Average Overweight (x) . | . 1 3 2 . . . . . . . . . . . . . . . . . . . Largest Inventory Capacity 25 | 8 20 25 25 25 15 15 15 15 15 15 15 15 15 15 15 15 15 15 15 15 15 15 Average Capacity 17 | 7 15 22 20 17 15 15 15 15 15 15 15 15 15 15 15 15 15 15 15 15 15 14 Most Carried 25 | 4 20 22 25 25 15 15 15 15 15 15 15 15 15 13 13 15 15 15 15 15 15 15 Average Carried 15 | 2 13 20 16 15 14 14 14 14 13 14 15 14 14 12 12 14 14 15 14 14 14 13 Final Capacity 25 | 8 20 25 25 15 15 15 15 15 15 15 15 15 15 15 15 15 15 15 15 15 15 5 Final Carried 25 | 4 20 21 25 14 15 15 15 13 15 15 15 15 14 12 12 14 15 15 15 14 15 5 Class Distribution -------------------- 33% | Mutant 12% | Hacker-Gladiator 12% | Hacker-Mutant 10% | Derelict-Mutant 10% | Commander-Mutant 8% | Hacker-Sprinter 6% | Scavenger-Mutant 3% | Gladiator Dominant Class ---------------- Mutant | -10/Materials Scavenger-Mutant | -10/Subcaves Mutant | -8/Scraptown Gladiator | -6/Factory Hacker-Gladiator | -6/Extension Hacker-Mutant | -6/Cetus Commander-Mutant | -6/Archives Hacker-Mutant | -6/Hub_04(d) Hacker-Mutant | -5/Factory Mutant | -5/Upper Caves Mutant | -5/Upper Caves Commander-Mutant | -5/Warlord Mutant | -4/Proximity Caves Mutant | -4/Factory Hacker-Sprinter | -4/Waste Hacker-Sprinter | -4/Factory Hacker-Sprinter | -4/Upper Caves Hacker-Sprinter | -4/Upper Caves Hacker-Sprinter | -4/Zhirov Hacker-Mutant | -3/Proximity Caves Hacker-Gladiator | -3/Research Hacker-Gladiator | -3/Testing Resources | -11 -10 -10 -8 -6 -6 -6 -6 -6 -5 -5 -5 -5 -4 -4 -4 -4 -4 -4 -4 -3 -3 -3 ----------- Run | Yrd Mat Sub Scr Fac Ext Cet Arc Hub Fac Upp Upp War Pro Fac Was Fac Upp Upp Zhi Pro Res Tes Matter Collected 4837 | 304 296 415 325 651 642 40 30 155 100 10 . 250 52 . . 315 251 . . 235 547 219 Remotely . | . . . . . . . . . . . . . . . . . . . . . . . Salvage Created 13545 | 148 717 244 . 1601 4969 294 360 2076 169 . 57 . 48 . . 382 277 . . 309 1523 371 Parts 595 | 17 37 16 . 79 167 13 36 53 12 . 1 . 4 . . 25 9 . . 10 85 31 Haulers Intercepted 22 | . 2 . . 1 7 . . 4 . . . . . . . . 1 . . . 7 . Recyclers Shooed 5 | . 1 . . 1 1 . . . . . . . . . . . . . . . 2 . Parts Field Recycled . | . . . . . . . . . . . . . . . . . . . . . . . Retrieved Matter . | . . . . . . . . . . . . . . . . . . . . . . . Parts Self-Destructed 38 | . . 13 . . . . . . . . . . 2 . . . 14 . . 9 . . Prevented . | . . . . . . . . . . . . . . . . . . . . . . . Parts Restored . | . . . . . . . . . . . . . . . . . . . . . . . Kills | -11 -10 -10 -8 -6 -6 -6 -6 -6 -5 -5 -5 -5 -4 -4 -4 -4 -4 -4 -4 -3 -3 -3 ------- Run | Yrd Mat Sub Scr Fac Ext Cet Arc Hub Fac Upp Upp War Pro Fac Was Fac Upp Upp Zhi Pro Res Tes Combat Hostiles Destroyed 108 | . 12 8 . 14 19 4 1 9 4 . . . 5 . . 8 5 . . 2 12 5 Melee 28 | . . . . 4 11 . . . . . . . . . . 5 . . . 2 1 5 Guns 13 | . 7 6 . . . . . . . . . . . . . . . . . . . . Cannons 14 | . 4 2 . . . 3 1 4 . . . . . . . . . . . . . . AOE 44 | . . . . 10 5 . . 1 4 . . . 5 . . 3 5 . . . 11 . Classes Destroyed 18 | 2 6 2 . 2 3 . . . . . 1 . . . . . 1 . . . . 1 Worker 43 | . . . . 9 19 . . 6 1 . . . . . . 2 . . . . 6 . Builder 13 | . 1 . . 3 1 . . 3 . . . . . . . 1 . . . . 4 . Tunneler 17 | 4 . . . 3 7 . . 1 . . . . . . . . . . . . 2 . Hauler 22 | . 2 . . 1 7 . . 4 . . . . . . . . 1 . . . 7 . Recycler 37 | 1 . . . 7 18 . . 7 1 . . . . . . . . . . . 3 . Minesweeper 2 | . . . . . . . . . . . . . . . . . 1 . . 1 . . Mechanic 6 | . 1 . . 1 3 . . . . . . . . . . 1 . . . . . . Operator 13 | . 2 . . 1 . . 9 . . . . . . . . . . . . . 1 . Watcher 9 | . 1 . . 1 1 2 . 2 . . . . . . . 1 . . . . 1 . Swarmer 41 | . . 4 . 11 . . . . 4 . . . 5 . . 5 . . . . 12 . Grunt 41 | . 12 . . . 16 . . 7 . . . . . . . . 5 . . 1 . . Duelist 1 | . . . . . 1 . . . . . . . . . . . . . . . . . Researcher 1 | . . . . . . . . . . . . . . . . . . . . . . 1 Sentry 2 | . . . . . 1 . 1 . . . . . . . . . . . . . . . Programmer 13 | . . . . 3 . . . 1 . . . . . . . 3 . . . 1 . 5 Behemoth 2 | . . . . . 1 . . 1 . . . . . . . . . . . . . . Cetus Guard 4 | . . . . . . 4 . . . . . . . . . . . . . . . . Subdweller 4 | . . 4 . . . . . . . . . . . . . . . . . . . . Packrat 2 | . . . . . . . . . . . . . . . . . . . . 2 . . Samaritan 1 | . . . . . . . . . . . 1 . . . . . . . . . . . Best Kill Streak 10 | 2 4 4 . 7 9 3 3 10 6 . 1 . 5 . . 5 6 . . 1 8 5 Combat Bots Only 5 | . 3 4 . 4 3 3 1 3 4 . . . 5 . . 4 5 . . 1 5 2 Max Kills in Single Turn 5 | 1 1 1 . 5 1 1 1 3 3 . 1 . 4 . . 3 3 . . 1 3 1 Gunslinging . | . . . . . . . . . . . . . . . . . . . . . . . Exploded 4 | . . . . 4 1 . . 1 3 . . . 4 . . 3 3 . . . 3 . Melee 1 | . . . . 1 1 . . . . . . . . . . 1 . . . 1 1 1 Uniques/NPCs Destroyed . | . . . . . . . . . . . . . . . . . . . . . . . Combat | -11 -10 -10 -8 -6 -6 -6 -6 -6 -5 -5 -5 -5 -4 -4 -4 -4 -4 -4 -4 -3 -3 -3 -------- Run | Yrd Mat Sub Scr Fac Ext Cet Arc Hub Fac Upp Upp War Pro Fac Was Fac Upp Upp Zhi Pro Res Tes Hostile Shots Fired 943 | . 75 34 . 90 108 19 20 87 14 . 3 6 22 . . 62 24 19 . 44 76 240 Missed 376 | . 18 11 . 28 53 4 14 50 7 . 3 4 10 . . 24 5 4 . 14 34 93 Hits 567 | . 57 23 . 62 55 15 6 37 7 . . 2 12 . . 38 19 15 . 30 42 147 Melee 6 | . . . . . . . . . . . . . . . . . . 3 . . 3 . Projectile 561 | . 57 23 . 62 55 15 6 37 7 . . 2 12 . . 38 19 12 . 30 39 147 Critical Strikes 40 | . 1 1 . . 6 . . 2 . . . . 1 . . 3 2 6 . 1 3 14 Part Disruptions 9 | . . . . . . . . . . . . . . . . 2 4 . . 1 . 2 Damage Taken 9870 | . 674 410 . 913 764 324 76 659 111 . . 21 188 . . 486 119 240 . 653 1176 3056 Core 2447 | . 144 66 . 204 175 36 11 113 . . . 10 25 . . 125 15 39 . 173 256 1055 Absorbed by Shields 1651 | . . . . . 324 138 59 260 . . . 20 10 . . 269 50 110 . . 19 392 Ignored by Resistances 108 | . . . . 56 . . . . . . . . 52 . . . . . . . . . Regen/Repaired (Parts) 465 | . . . 278 . . . . . . . . 58 . . . . . . . . 129 . Core Remaining (%) 62 | 100 . . 16 . . . . 36 . . . . 96 . . . . . . 63 . . Volleys Fired 379 | 24 84 41 . 14 19 24 49 103 3 . . 1 3 . . 3 4 . . . 5 2 Largest 2 | 2 2 2 . 1 1 1 1 1 1 . . 1 1 . . 1 1 . . . 1 1 Hottest 240 | 40 120 120 . 43 43 40 40 75 240 . . 240 43 . . 240 49 . . . 49 240 Shots Fired 525 | 48 168 79 . 14 19 24 49 103 3 . . 1 3 . . 3 4 . . . 5 2 Gun 252 | 48 138 60 . . . . . . 1 . . 1 . . . 2 . . . . . 2 Cannon 226 | . 30 19 . . 1 24 49 103 . . . . . . . . . . . . . . Launcher 47 | . . . . 14 18 . . . 2 . . . 3 . . 1 4 . . . 5 . Special . | . . . . . . . . . . . . . . . . . . . . . . . Kinetic 185 | 48 80 57 . . . . . . . . . . . . . . . . . . . . Thermal 222 | . 30 19 . . 1 24 49 93 1 . . 1 . . . 2 . . . . . 2 Explosive 26 | . . . . 11 . . . . 2 . . . 3 . . 1 4 . . . 5 . Electromagnetic 92 | . 58 3 . 3 18 . . 10 . . . . . . . . . . . . . . Robot Hit Streak 12 | 4 10 10 . 3 5 12 12 9 7 . . . 8 . . . 2 . . . 1 . Robot Miss Streak 6 | 2 3 2 . 3 2 5 6 2 . . . . 1 . . . 1 . . . 3 . Penetration Max . | . . . . . . . . . . . . . . . . . . . . . . . Secondary Targets 3 | . 1 2 . . . . . . . . . . . . . . . . . . . . Max Gunslinging Chain 1 | . 1 1 . . . . . . . . . . . . . . . . . . . . Shots Hit Robots 630 | 23 108 32 2 46 162 14 28 50 4 . 1 15 2 . . 26 20 2 3 17 62 13 Core Hits 311 | 10 33 10 . 30 78 8 14 32 5 . 1 . 6 . . 14 20 . . 3 39 8 Critical Kills 9 | . 1 . . . 1 1 1 5 . . . . . . . . . . . . . . Critical Parts Destroyed . | . . . . . . . . . . . . . . . . . . . . . . . Critical Strikes 21 | . 2 . . 1 2 1 1 5 . . . . . . . . 2 . . 4 2 1 Meltdown 9 | . 1 . . . 1 1 1 5 . . . . . . . . . . . . . . Corrupt 1 | . 1 . . . . . . . . . . . . . . . . . . . . . Sever 2 | . . . . 1 1 . . . . . . . . . . . . . . . . . Impale 1 | . . . . . . . . . . . . . . . . . . . . . . 1 Melee Attacks 516 | . . . 2 80 176 . . 4 6 8 5 15 . 1 . 60 25 5 3 24 80 22 Impact . | . . . . . . . . . . . . . . . . . . . . . . . Slashing 441 | . . . . 80 155 . . 4 6 8 5 . . 1 . 58 16 5 . 24 79 . Piercing 23 | . . . . . . . . . . . . . . . . . . . . . 1 22 Sneak Attacks 173 | . . . 2 24 84 . . . 2 . 1 15 . . . 5 10 . 3 3 23 1 Combat Hostiles 3 | . . . . . 3 . . . . . . . . . . . . . . . . . Follow-up Attacks 18 | . . . . 4 10 . . . . . . . . . . 1 . . . . . 3 Damage Inflicted 31953 | 196 1283 719 . 4102 9109 712 1446 3474 476 . 77 . 384 . . 1776 1363 108 . 954 4989 785 Guns 1608 | 196 896 516 . . . . . . . . . . . . . . . . . . . . Cannons 5264 | . 314 203 . . 41 712 1446 2548 . . . . . . . . . . . . . . Explosions 6307 | . 73 . . 1152 871 . . 926 327 . . . 384 . . 406 887 . . . 1281 . Melee 18773 | . . . . 2950 8197 . . . 149 . 77 . . . . 1370 476 108 . 954 3708 784 Ramming 1 | . . . . . . . . . . . . . . . . . . . . . . 1 Kinetic 1125 | 196 430 499 . . . . . . . . . . . . . . . . . . . . Thermal 5337 | . 387 203 . . 41 712 1446 2548 . . . . . . . . . . . . . . Explosive 4303 | . . . . 1018 . . . . 327 . . . 384 . . 406 887 . . . 1281 . Electromagnetic 2414 | . 466 17 . 134 871 . . 926 . . . . . . . . . . . . . . Impact . | . . . . . . . . . . . . . . . . . . . . . . . Slashing 17918 | . . . . 2950 8197 . . . 149 . 77 . . . . 1370 476 108 . 954 3637 . Piercing 855 | . . . . . . . . . . . . . . . . . . . . . 71 784 Highest Corruption 22 | . 1 1 1 2 3 . . 2 . . . . . . 7 16 18 18 18 22 . 11 Average Corruption 4 | . 1 1 1 1 2 . . 1 . . . . . . 7 11 17 18 18 19 . 8 Corruption Purged 3 | . . . . . 3 . . . . . . . . . . . . . . . . . Corruption Blocked . | . . . . . . . . . . . . . . . . . . . . . . . Effects 165 | . 4 15 14 9 33 . . . . . . . . . 1 13 43 8 3 15 . 7 Message Errors 42 | . 1 6 5 1 9 . . . . . . . . . 1 . 12 2 . 3 . 2 Matter Fused 37 | . . 2 6 5 3 . . . . . . . . . . 3 8 1 1 6 . 2 Heat Flow Errors 21 | . 1 . 1 2 7 . . . . . . . . . . 4 3 1 . 1 . 1 Energy Discharges 19 | . . 3 . 1 2 . . . . . . . . . . 2 8 . . 3 . . Parts Rejected 5 | . . . . . 3 . . . . . . . . . . 1 1 . . . . . Parts Fused 3 | . . . 1 . 1 . . . . . . . . . . . . . . 1 . . Data Loss (minor) 15 | . 2 2 . . 3 . . . . . . . . . . 1 3 2 1 . . 1 Data Loss (major) 9 | . . . 1 . 3 . . . . . . . . . . . 2 2 1 . . . Misfires 1 | . . 1 . . . . . . . . . . . . . . . . . . . . Alerts 3 | . . . . . 2 . . . . . . . . . . . 1 . . . . . Misdirections 9 | . . . . . . . . . . . . . . . . 2 5 . . 1 . 1 Weapon Failures 1 | . . 1 . . . . . . . . . . . . . . . . . . . . Overload Shots 6 | . . . . . . . . . 1 . . 1 . . . 2 . . . . . 2 Overflow Damage 3690 | . 9 . . 933 1238 . 57 200 37 . . . . . . 285 73 3 . 222 560 73 Projectiles 204 | . 9 . . . . . 57 138 . . . . . . . . . . . . . . Explosions 258 | . . . . 56 . . . 62 . . . . . . . 95 . . . . 45 . Melee 3228 | . . . . 877 1238 . . . 37 . . . . . . 190 73 3 . 222 515 73 Knockbacks . | . . . . . . . . . . . . . . . . . . . . . . . Impact . | . . . . . . . . . . . . . . . . . . . . . . . Kinetic . | . . . . . . . . . . . . . . . . . . . . . . . Secondary . | . . . . . . . . . . . . . . . . . . . . . . . Self-Inflicted Damage 321 | . . . . 29 . . . 284 . . . . . . . . . . . . 8 . Shots 7 | . . . . 3 . . . 3 . . . . . . . . . . . . 1 . Rammed 1 | . . . . . . . . . . . . . . . . . . . . 1 . . Targets Rammed 2 | . . . . . . . . . . . . . . . . . . . . 1 . 1 Kicked 1 | . . . . . . . . . . . . . . . . . . . . . . 1 Crushed . | . . . . . . . . . . . . . . . . . . . . . . . Highest Temperature 434 | . 207 2 109 237 238 66 52 88 200 . . 208 . . . 371 310 434 201 270 9 398 Average Temperature 80 | . 63 2 59 111 98 26 21 24 109 . . 111 . . . 115 94 129 77 90 6 91 Received Heat Transfer 1777 | . 396 36 . 12 186 52 16 106 9 . . 4 42 . . . 100 80 . 48 126 564 Effects 10 | . . . . . . . . . . . . . . . . 4 3 1 . . . 2 Shutdowns 2 | . . . . . . . . . . . . . . . . 1 . . . . . 1 Energy Bleed 1 | . . . . . . . . . . . . . . . . . 1 . . . . . Interference 4 | . . . . . . . . . . . . . . . . 2 2 . . . . . Matter Decay 1 | . . . . . . . . . . . . . . . . . . . . . . 1 Short Circuit 1 | . . . . . . . . . . . . . . . . . . 1 . . . . Damage (minor) 1 | . . . . . . . . . . . . . . . . 1 . . . . . . Siege Activations . | . . . . . . . . . . . . . . . . . . . . . . . Martial Activations . | . . . . . . . . . . . . . . . . . . . . . . . Shielding Activations . | . . . . . . . . . . . . . . . . . . . . . . . Robots Disrupted 1 | . . . . . 1 . . . . . . . . . . . . . . . . . Combat Hostiles 1 | . . . . . 1 . . . . . . . . . . . . . . . . . Robots Corrupted 4 | . . . . . 3 . . 1 . . . . . . . . . . . . . . Combat Hostiles 4 | . . . . . 3 . . 1 . . . . . . . . . . . . . . Parts Fried 16 | . 2 . . . 8 1 . 5 . . . . . . . . . . . . . . Impact Corruptions . | . . . . . . . . . . . . . . . . . . . . . . . Robots Melted 9 | . 1 . . . 1 1 1 5 . . . . . . . . . . . . . . Combat Hostiles 5 | . 1 . . . . 1 . 3 . . . . . . . . . . . . . . Parts Melted 14 | . 2 . . . 1 2 3 6 . . . . . . . . . . . . . . Heat Transferred 1112 | . 816 296 . . . . . . . . . . . . . . . . . . . . Parts Sabotaged . | . . . . . . . . . . . . . . . . . . . . . . . Parts Stolen . | . . . . . . . . . . . . . . . . . . . . . . . Parts Stripped . | . . . . . . . . . . . . . . . . . . . . . . . Power Chain Reactions 3 | . 2 . . . . . . 1 . . . . . . . . . . . . . . Alert | -11 -10 -10 -8 -6 -6 -6 -6 -6 -5 -5 -5 -5 -4 -4 -4 -4 -4 -4 -4 -3 -3 -3 ------- Run | Yrd Mat Sub Scr Fac Ext Cet Arc Hub Fac Upp Upp War Pro Fac Was Fac Upp Upp Zhi Pro Res Tes Maximum Alert Level 5 | . . . . 2 5 3 2 5 4 . . . . . . 1 . . . . 2 1 Low Security (%) 41 | 100 100 . . 70 8 . . 1 . . . . . 100 100 97 . . . . 18 78 Level 1 17 | . . . . 26 27 . . 21 . . . . . . . 2 . . . . 24 21 Level 2 23 | . . . . 2 21 . 99 34 . . . . . . . . . . . . 57 . Level 3 8 | . . . . . 16 100 . 21 10 . . . . . . . . . . . . . Level 4 3 | . . . . . 8 . . 5 89 . . . . . . . . . . . . . Level 5 4 | . . . . . 16 . . 14 . . . . . . . . . . . . . . High Security . | . . . . . . . . . . . . . . . . . . . . . . . Max Security . | . . . . . . . . . . . . . . . . . . . . . . . Peak Influence 2038 | 5 108 . . 429 1907 1071 581 2038 1137 . . . . 42 11 239 . . . . 582 249 Initial 1066 | . . . . . 210 1066 406 182 998 . . . . . 11 . . . . . . 206 Average 414 | 1 23 . . 111 790 1015 512 810 1106 . . . . 14 7 109 . . . . 366 172 Influence Increases 9979 | 25 458 125 . 886 2583 279 305 2544 217 . 65 131 140 42 . 448 264 150 . 85 1027 205 Destroy 0b10 Robot/C 3360 | . 240 80 . 280 1040 160 80 500 80 . . 40 100 . . 160 200 . . 40 240 120 Destroy 0b10 Robot/NC 900 | 25 35 . . 130 320 10 45 155 10 . 5 5 . . . 25 10 . . 5 120 . Destroy Leader 528 | . 56 . . 72 134 . . 120 10 . . . 10 . . 42 10 . . 10 44 20 Allied During Kill 1455 | . . . . . 685 76 125 544 . . . 11 . . . . 14 . . . . . Trap Triggered on 0b10 40 | . . . . 40 . . . . . . . . . . . . . . . . . . Successful Hack 362 | . 32 . . 50 45 13 . 51 12 . . . . 10 . 71 . . . . 68 10 Select Force Hacks 150 | . 60 . . 30 . . . . 30 . . . . 30 . . . . . . . . Disable Machine 810 | . 30 . . 75 30 . 45 585 15 . . . . . . . . . . . 30 . Destroy Structure 784 | . 5 . . 89 29 20 10 379 30 . . . . 2 . 60 . . . . 150 10 Partial Spotted 285 | . . . . 75 15 . . 90 . . . . . . . 15 . . . . 90 . Lose Combat Pursuer 1305 | . . 45 . 45 285 . . 120 30 . 60 75 30 . . 75 30 150 . 30 285 45 Influence Decreases 9948 | 25 354 193 36 457 1107 1169 799 1027 1130 631 275 415 140 10 31 210 452 101 100 85 660 541 Entered New Map 4312 | . . 51 36 . 219 839 609 339 1040 417 95 284 . . 21 1 89 11 100 . . 161 Time Decay 4357 | 25 342 132 . 407 618 170 180 368 90 214 180 99 110 10 10 199 303 90 . 60 580 170 Lost Part 517 | . 12 10 . 50 30 . 10 70 . . . . 10 . . 10 . . . 25 80 210 Lost Ally 612 | . . . . . 240 160 . 100 . . . 32 20 . . . 60 . . . . . Purge Threat 150 | . . . . . . . . 150 . . . . . . . . . . . . . . Squads Dispatched 61 | . 7 . . 10 8 . . 10 2 . . . . 1 . 8 . . . . 10 5 Investigation 28 | . 4 . . 4 4 . . 1 2 . . . . 1 . 3 . . . . 7 2 Extermination 9 | . . . . 4 . . . 2 . . . . . . . 2 . . . . . 1 Reinforcement 18 | . 3 . . 2 2 . . 4 . . . . . . . 3 . . . . 3 1 Assault 5 | . . . . . 2 . . 2 . . . . . . . . . . . . . 1 Garrison 1 | . . . . . . . . 1 . . . . . . . . . . . . . . Intercept . | . . . . . . . . . . . . . . . . . . . . . . . Searches Triggered . | . . . . . . . . . . . . . . . . . . . . . . . Construction Impeded 4 | . . . . . 2 . . 2 . . . . . . . . . . . . . . Haulers Reinforced 3 | . . . . . . . . 2 . . . . . . . . . . . . 1 . Active Scanning Responses . | . . . . . . . . . . . . . . . . . . . . . . . Cargo Convoy Interrupts . | . . . . . . . . . . . . . . . . . . . . . . . Stealth | -11 -10 -10 -8 -6 -6 -6 -6 -6 -5 -5 -5 -5 -4 -4 -4 -4 -4 -4 -4 -3 -3 -3 --------- Run | Yrd Mat Sub Scr Fac Ext Cet Arc Hub Fac Upp Upp War Pro Fac Was Fac Upp Upp Zhi Pro Res Tes Distress Signals 16 | . 2 . . . . 2 . 5 . . . . . . . 2 1 . . . 3 1 Communications Jammed . | . . . . . . . . . . . . . . . . . . . . . . . Distress Signals . | . . . . . . . . . . . . . . . . . . . . . . . Times Spotted 437 | . 23 15 . 28 75 12 15 42 9 . 7 77 10 . 3 28 8 10 . 4 41 30 Peak Tracking Total 19 | . 3 3 . 4 8 5 2 6 4 . 4 10 7 . 3 7 5 5 . 2 9 19 Tactical Retreats 46 | . . 2 . 3 9 . . 4 1 . 1 3 1 . . 5 2 4 . 2 8 1 Traps | -11 -10 -10 -8 -6 -6 -6 -6 -6 -5 -5 -5 -5 -4 -4 -4 -4 -4 -4 -4 -3 -3 -3 ------- Run | Yrd Mat Sub Scr Fac Ext Cet Arc Hub Fac Upp Upp War Pro Fac Was Fac Upp Upp Zhi Pro Res Tes Traps Triggered 13 | . 1 1 . . 6 . . . 1 . . . . 1 . . . . . . . 3 Indirectly . | . . . . . . . . . . . . . . . . . . . . . . . Trap Hack Attempts . | . . . . . . . . . . . . . . . . . . . . . . . Triggered . | . . . . . . . . . . . . . . . . . . . . . . . Disarmed 6 | . . . . . . . . . . . . . . . . 6 . . . . . . Reprogrammed 6 | . . . . 6 . . . . . . . . . . . . . . . . . . Reused 6 | . . . . 4 . . . . . . . . . . . . 2 . . . . . Traps Extracted . | . . . . . . . . . . . . . . . . . . . . . . . Installed 4 | . . . . 2 . . . . . . . . . . . . 2 . . . . . Triggered 6 | . . . . 4 . . . . . . . . . . . . 2 . . . . . Most Traps Carried 2 | . . 2 2 2 . . . . . . . . . . . . . . . . . . Machines | -11 -10 -10 -8 -6 -6 -6 -6 -6 -5 -5 -5 -5 -4 -4 -4 -4 -4 -4 -4 -3 -3 -3 ---------- Run | Yrd Mat Sub Scr Fac Ext Cet Arc Hub Fac Upp Upp War Pro Fac Was Fac Upp Upp Zhi Pro Res Tes Machines Disabled 63 | . 2 3 . 5 6 . 3 39 1 . . 1 . . . . 1 . . . 2 . Max in Single Turn 17 | . 1 2 . 1 2 . 1 17 1 . . 1 . . . . 1 . . . 1 . Garrison Access 2 | . . . . . . . . . . . . . . . . 1 . . . . 1 . Network Hub 3 | . . . . . . . . 3 . . . . . . . . . . . . . . Machines Repaired . | . . . . . . . . . . . . . . . . . . . . . . . Machines Dismantled . | . . . . . . . . . . . . . . . . . . . . . . . Machines Sabotaged . | . . . . . . . . . . . . . . . . . . . . . . . Overloaded Fab Kills . | . . . . . . . . . . . . . . . . . . . . . . . Hacking | -11 -10 -10 -8 -6 -6 -6 -6 -6 -5 -5 -5 -5 -4 -4 -4 -4 -4 -4 -4 -3 -3 -3 --------- Run | Yrd Mat Sub Scr Fac Ext Cet Arc Hub Fac Upp Upp War Pro Fac Was Fac Upp Upp Zhi Pro Res Tes Machines Accessed 103 | . 7 1 8 12 14 3 . 10 4 2 . 3 1 1 . 12 1 1 6 . 12 5 Terminals 57 | . 5 . . 6 12 3 . 10 2 . . . 1 . . 8 . . . . 6 4 Fabricators 6 | . . . . 2 . . . . . . . . . . . 2 . . . . 2 . Repair Stations 2 | . . . . . 1 . . . . . . . . . . . . . . . 1 . Recycling Units 9 | . 2 . . 2 1 . . . 1 . . . . . . 1 . . . . 2 . Scanalyzers 5 | . . . . 2 . . . . 1 . . . . 1 . . . . . . . 1 Garrison Access 2 | . . . . . . . . . . . . . . . . 1 . . . . 1 . Total Hacks 375 | . 21 1 61 27 33 7 . 32 13 8 . 7 1 4 . 47 1 1 19 . 61 31 Successful 215 | . 7 1 61 13 15 3 . 20 6 8 . 7 1 3 . 22 1 1 19 . 19 8 Failed 157 | . 14 . . 14 18 4 . 11 6 . . . . 1 . 25 . . . . 42 22 Catastrophic 27 | . 2 . . 2 4 . . . 2 . . . . . . 4 . . . . 5 8 Database Lockouts 3 | . . . . . . . . 1 1 . . . . . . . . . . . . 1 Manual 114 | . 13 . . 10 7 1 . 24 2 . . . . 1 . 29 . . . . 24 3 Terminals 201 | . 16 . . 12 28 7 . 32 9 . . . 1 . . 37 . . . . 35 24 Fabricators 17 | . . . . 4 . . . . . . . . . . . 6 . . . . 7 . Repair Stations 15 | . . . . . 3 . . . . . . . . . . . . . . . 12 . Recycling Units 16 | . 5 . . 4 2 . . . 1 . . . . . . 1 . . . . 3 . Scanalyzers 21 | . . . . 7 . . . . 3 . . . . 4 . . . . . . . 7 Garrison Access 7 | . . . . . . . . . . . . . . . . 3 . . . . 4 . Terminal Hacks 156 | . 5 1 61 4 12 3 . 13 3 8 . 7 1 . . 7 1 1 19 . 6 4 Record 87 | . . . 60 . . 2 . . 2 7 . 2 1 . . . 1 . 7 . 5 . Part Schematic 7 | . 2 . . . 1 . . . . . . . . . . . . . 4 . . . Robot Analysis 7 | . . . . . 1 . . 1 1 . . . . . . . . . 4 . . . Prototype ID Bank 13 | . 1 . . . 1 . . 1 . . . 4 . . . 2 . . 4 . . . Open Door 11 | . . . 1 . 6 1 . . . 1 . 1 . . . . . 1 . . . . Branch Access Points 3 | . . . . 1 . . . . . . . . . . . 1 . . . . 1 . Machine Index 1 | . . . . . . . . 1 . . . . . . . . . . . . . . Terminal Index 2 | . . . . . . . . 1 . . . . . . . 1 . . . . . . Alert Level 1 | . . . . . . . . . . . . . . . . . . . . . . 1 Unreport Threat 1 | . . . . . . . . 1 . . . . . . . . . . . . . . Locate Traps 9 | . 2 . . 2 1 . . 2 . . . . . . . 1 . . . . . 1 Disarm Traps 1 | . . . . . . . . . . . . . . . . 1 . . . . . . Reprogram Traps 1 | . . . . 1 . . . . . . . . . . . . . . . . . . Extermination Status 2 | . . . . . 1 . . 1 . . . . . . . . . . . . . . Recall Reinforcements 2 | . . . . . 1 . . 1 . . . . . . . . . . . . . . Recall Assault 1 | . . . . . . . . 1 . . . . . . . . . . . . . . Registered Components 1 | . . . . . . . . 1 . . . . . . . . . . . . . . Zone Layout 3 | . . . . . . . . 2 . . . . . . . 1 . . . . . . Proto ID Catalog 1 | . . 1 . . . . . . . . . . . . . . . . . . . . Protovariant Controls 2 | . . . . . . . . . . . . . . . . . . . . . . 2 Fabricator Hacks 7 | . . . . 1 . . . . . . . . . . . 3 . . . . 3 . Network Status 1 | . . . . . . . . . . . . . . . . . . . . . 1 . Load Schematic 4 | . . . . 1 . . . . . . . . . . . 2 . . . . 1 . Build 2 | . . . . . . . . . . . . . . . . 1 . . . . 1 . Repair Station Hacks 4 | . . . . . 1 . . . . . . . . . . . . . . . 3 . Scan Component 2 | . . . . . 1 . . . . . . . . . . . . . . . 1 . Repair 1 | . . . . . . . . . . . . . . . . . . . . . 1 . Refit 1 | . . . . . . . . . . . . . . . . . . . . . 1 . Recycling Unit Hacks 2 | . . . . 1 1 . . . . . . . . . . . . . . . . . Report Inventory 1 | . . . . . 1 . . . . . . . . . . . . . . . . . Retrieve Matter 1 | . . . . 1 . . . . . . . . . . . . . . . . . . Scanalyzer 11 | . . . . 4 . . . . 1 . . . . 2 . . . . . . . 4 Insert Component 3 | . . . . 1 . . . . . . . . . 1 . . . . . . . 1 Analyze 2 | . . . . 1 . . . . . . . . . 1 . . . . . . . . Retrieve Study 6 | . . . . 2 . . . . 1 . . . . . . . . . . . . 3 Garrison Access Hacks 2 | . . . . . . . . . . . . . . . . 1 . . . . 1 . Seal Access 2 | . . . . . . . . . . . . . . . . 1 . . . . 1 . Unauthorized Hacks 33 | . 2 . . 3 1 . . 7 2 . . . . 1 . 11 . . . . 6 . Terminals 18 | . . . . . . . . 7 . . . . . . . 8 . . . . 3 . Track 1 | . . . . . . . . . . . . . . . . 1 . . . . . . Assimilate 1 | . . . . . . . . 1 . . . . . . . . . . . . . . Botnet 2 | . . . . . . . . 1 . . . . . . . 1 . . . . . . Operators 1 | . . . . . . . . . . . . . . . . 1 . . . . . . Skim 13 | . . . . . . . . 5 . . . . . . . 5 . . . . 3 . Fabricators 4 | . . . . 1 . . . . . . . . . . . 2 . . . . 1 . Haulers 3 | . . . . 1 . . . . . . . . . . . 1 . . . . 1 . Recompile 1 | . . . . . . . . . . . . . . . . 1 . . . . . . Repair Stations . | . . . . . . . . . . . . . . . . . . . . . . . Recycling Units 8 | . 2 . . 1 1 . . . 1 . . . . . . 1 . . . . 2 . Tunnel 2 | . 2 . . . . . . . . . . . . . . . . . . . . . Fedlink 6 | . . . . 1 1 . . . 1 . . . . . . 1 . . . . 2 . Scanalyzers 3 | . . . . 1 . . . . 1 . . . . 1 . . . . . . . . Extract 3 | . . . . 1 . . . . 1 . . . . 1 . . . . . . . . Garrison Access . | . . . . . . . . . . . . . . . . . . . . . . . Data Cores Recovered 4 | . . . . . 2 . . 1 . . . . . . . . . . . . 1 . Used 1 | . . . . . . . . 1 . . . . . . . . . . . . . . Hacking Detections 63 | . 6 . . 11 11 2 . 10 2 . . . . 1 . 7 . . . . 8 5 Full Trace Events 12 | . 2 . . 2 3 . . 1 . . . . . . . 1 . . . . 2 1 Feedback Events 2 | . . . . 1 . . . . . . . . . . . . . . . . 1 . Corruption 1 | . . . . 1 . . . . . . . . . . . . . . . . . . Hackware Fried 1 | . . . . . . . . . . . . . . . . . . . . . 1 . Feedback Blocked . | . . . . . . . . . . . . . . . . . . . . . . . Robot Schematics Acquired 1 | . . . . . . . . . . . . . . . . . . . . . . 1 Robots Built . | . . . . . . . . . . . . . . . . . . . . . . . Authchips . | . . . . . . . . . . . . . . . . . . . . . . . Time . | . . . . . . . . . . . . . . . . . . . . . . . Total Robot Build Rating . | . . . . . . . . . . . . . . . . . . . . . . . Part Schematics Acquired 33 | . 2 . . 9 1 . . . 9 . . . . 3 . . . . 4 . . 5 Parts Built 4 | . . . . . . . . . . . . . . . . 2 . . . . 2 . Authchips 1 | . . . . . . . . . . . . . . . . 1 . . . . . . Time 97 | . . . . . . . . . . . . . . . . 39 . . . . 58 . Total Part Build Rating 28 | . . . . . . . . . . . . . . . . 14 . . . . 14 . Part Studies Acquired 6 | . . . . 2 . . . . 1 . . . . . . . . . . . . 3 Parts Repaired 1 | . . . . . . . . . . . . . . . . . . . . . 1 . Time 45 | . . . . . . . . . . . . . . . . . . . . . 45 . Parts Recycled . | . . . . . . . . . . . . . . . . . . . . . . . Recycled Matter . | . . . . . . . . . . . . . . . . . . . . . . . Retrieved Matter . | . . . . . . . . . . . . . . . . . . . . . . . Retrieved Components . | . . . . . . . . . . . . . . . . . . . . . . . Parts Scanalyzed 3 | . . . . 1 . . . . . . . . . 1 . . . . . . . 1 Part Schematics Acquired 2 | . . . . 1 . . . . . . . . . 1 . . . . . . . . Parts Damaged . | . . . . . . . . . . . . . . . . . . . . . . . Bothacking | -11 -10 -10 -8 -6 -6 -6 -6 -6 -5 -5 -5 -5 -4 -4 -4 -4 -4 -4 -4 -3 -3 -3 ------------ Run | Yrd Mat Sub Scr Fac Ext Cet Arc Hub Fac Upp Upp War Pro Fac Was Fac Upp Upp Zhi Pro Res Tes Used RIF Installer . | . . . . . . . . . . . . . . . . . . . . . . . Robots Hacked 13 | . . . 2 . 3 . . . . . . 5 . . . . . . 3 . . . Non-combat . | . . . . . . . . . . . . . . . . . . . . . . . Combat 11 | . . . 2 . 1 . . . . . . 5 . . . . . . 3 . . . Robot Hacks Applied 11 | . . . 2 . 1 . . . . . . 5 . . . . . . 3 . . . parse_system 11 | . . . 2 . 1 . . . . . . 5 . . . . . . 3 . . . Manual 2 | . . . . . 2 . . . . . . . . . . . . . . . . . Relay Couplers Released . | . . . . . . . . . . . . . . . . . . . . . . . Fabnet Peak Effective % . | . . . . . . . . . . . . . . . . . . . . . . . Robots Rewired 21 | . . . . . 13 . . . . . . 5 . . . . 3 . . . . . Allies Hacked 1 | . . . . . . . . . . . . . . . . . 1 . . . . . Hacks Repelled . | . . . . . . . . . . . . . . . . . . . . . . . Allies | -11 -10 -10 -8 -6 -6 -6 -6 -6 -5 -5 -5 -5 -4 -4 -4 -4 -4 -4 -4 -3 -3 -3 -------- Run | Yrd Mat Sub Scr Fac Ext Cet Arc Hub Fac Upp Upp War Pro Fac Was Fac Upp Upp Zhi Pro Res Tes Total Allies 35 | . . . . . 22 5 . . . . . 5 . . . . 3 . . . . . Largest Group 11 | . . . . . 11 8 5 5 . . . 5 3 . . . 3 . . . . . Highest-Rated Group 480 | . . . . . 426 480 480 473 . . . 274 192 . . . 141 . . . . . Highest-Rated Ally 159 | . . . . . 159 127 96 96 . . . 64 64 . . . 47 . . . . . Total Orders 10 | . . . . . . . . . . . . 6 . . . 2 . . . . 2 . STAY 5 | . . . . . . . . . . . . 5 . . . . . . . . . . FOLLOW 1 | . . . . . . . . . . . . 1 . . . . . . . . . . EXPLORE 2 | . . . . . . . . . . . . . . . . 1 . . . . 1 . RETURN 2 | . . . . . . . . . . . . . . . . 1 . . . . 1 . Ally Attacks 460 | . . . . . 239 76 28 80 . . . 15 . . . . 22 . . . . . Total Damage 13285 | . . . . . 5616 2291 878 3234 . . . 572 . . . . 694 . . . . . Kills 80 | . . . . . 40 4 3 24 . . . 3 . . . . 6 . . . . . Allies Corrupted 2 | . . . . . . . . . . . . . . . . . 2 . . . . . Allies Melted 1 | . . . . . 1 . . . . . . . . . . . . . . . . . Intel | -11 -10 -10 -8 -6 -6 -6 -6 -6 -5 -5 -5 -5 -4 -4 -4 -4 -4 -4 -4 -3 -3 -3 ------- Run | Yrd Mat Sub Scr Fac Ext Cet Arc Hub Fac Upp Upp War Pro Fac Was Fac Upp Upp Zhi Pro Res Tes Active Infowar (turns) 15450 | 109 817 898 4094 1609 241 . . 689 184 457 372 1131 464 23 28 461 842 190 103 364 2027 347 Optics 7081 | . . . . . . . . 92 184 457 372 1131 464 23 28 461 838 190 103 364 2027 347 IFF 3001 | . . . . . . . . 66 . 451 372 285 458 23 5 99 711 150 43 184 154 . Terrain 1 | . . . . . . . . . . . . . . . . . . . . . 1 . Structural 3697 | . . . 1688 . 214 . . . 113 457 372 288 460 12 . . . . . . . 93 Traps 2 | . . . . . . . . . . . . . . . . . 2 . . . . . Seismic 6927 | 109 817 892 2392 1609 176 . . 625 114 93 . . 7 . . . . . . . . 93 Machine Analysis 15 | . . . . . . . . . . . . . . . . . . . . . 15 . ECM 42 | . . 6 35 1 . . . . . . . . . . . . . . . . . . Robot Analysis Total 7 | . . . . . 1 . . 1 1 . . . . . . . . . 4 . . . Derelict Logs Recovered 14 | . . . 5 . . . . . . 2 1 . 2 . . . 2 2 . . . . Drone Launches 9 | . . . . . . . . . . . . . . . . 3 . . . . 6 . Drone Recoveries 9 | . . . . . . . . . . . . . . . . 3 . . . . 6 . Exploration | -11 -10 -10 -8 -6 -6 -6 -6 -6 -5 -5 -5 -5 -4 -4 -4 -4 -4 -4 -4 -3 -3 -3 ------------- Run | Yrd Mat Sub Scr Fac Ext Cet Arc Hub Fac Upp Upp War Pro Fac Was Fac Upp Upp Zhi Pro Res Tes Turns Passed 21451 | 211 1416 1843 5662 1675 2072 340 371 857 184 457 372 1131 464 23 28 461 853 190 103 364 2027 347 Spaces Moved 20222 | 86 767 1148 3445 1652 2065 415 195 1094 353 957 677 1032 668 52 81 893 1151 414 206 682 1762 427 Core 172 | 4 . . 158 . . . . . . . . . . . . . . . . . . 10 Treads 1565 | 82 328 . 1155 . . . . . . . . . . . . . . . . . . . Legs 22 | . . . . . . . . . . . . . . . . . . . . . 7 15 Wheels 3945 | . 439 1148 2132 226 . . . . . . . . . . . . . . . . . . Hover 14518 | . . . . 1426 2065 415 195 1094 353 957 677 1032 668 52 81 893 1151 414 206 682 1755 402 Flight . | . . . . . . . . . . . . . . . . . . . . . . . Fastest Speed 18 | 50 115 115 50 52 40 40 40 40 40 40 40 38 40 29 29 18 20 19 20 20 32 40 Average Speed 73 | 154 143 140 156 75 61 40 74 40 40 40 40 49 55 29 29 25 20 19 20 27 39 48 Slowest Speed 1450 | 160 240 160 1450 195 63 40 90 48 48 40 40 94 90 29 29 88 95 91 20 180 170 120 Overloaded Moves 116 | . . . . . . . . . . . . . . . . 44 . 72 . . . . Propulsion Burnouts . | . . . . . . . . . . . . . . . . . . . . . . . Robots Hopped . | . . . . . . . . . . . . . . . . . . . . . . . Potential Cave-ins . | . . . . . . . . . . . . . . . . . . . . . . . Cave-ins Triggered . | . . . . . . . . . . . . . . . . . . . . . . . Teleports 1 | . . . . . . . . . . . . . . . . . . . 1 . . . Exploration Rate (%) 67 | 5 97 47 94 48 98 79 96 71 14 94 86 95 89 2 83 28 97 61 63 75 61 69 Regions Visited 22 Branch Regions 15 Pre-discovered Areas 14 | . 2 . 7 . 1 . . 1 . . . . . . . . . . 3 . . . Known Exits Taken 9 | . . . . 1 . . . 1 1 1 . . 1 . . 1 1 . . 1 1 . Unknown Exits Taken 11 | 1 1 1 1 . 1 1 1 . . . 1 1 . . . . . 1 1 . . . Scrap Searched 28 | . . 7 10 . . . . . . 3 2 . 1 . . . 4 1 . . . . Spaces Dug 150 | . . . . 22 4 . 1 22 5 7 4 . . 1 . 34 28 3 . 3 11 5 Terrain Destroyed 906 | . 5 2 . 101 4 7 7 528 15 7 4 . 37 1 . 35 67 3 . 3 74 6 Melee 87 | . . . . 22 4 . . 4 4 7 4 . . 1 . 16 4 3 . 3 11 4 Projectile 57 | . . 2 . . . 7 7 36 1 . . . . . . 2 . . . . . 2 AOE 762 | . 5 . . 79 . . . 488 10 . . . 37 . . 17 63 . . . 63 . Terrain Rammed . | . . . . . . . . . . . . . . . . . . . . . . . Walls Destroyed . | . . . . . . . . . . . . . . . . . . . . . . . Machines Disabled . | . . . . . . . . . . . . . . . . . . . . . . . Actions | -11 -10 -10 -8 -6 -6 -6 -6 -6 -5 -5 -5 -5 -4 -4 -4 -4 -4 -4 -4 -3 -3 -3 --------- Run | Yrd Mat Sub Scr Fac Ext Cet Arc Hub Fac Upp Upp War Pro Fac Was Fac Upp Upp Zhi Pro Res Tes Total 25640 | 122 933 1301 3725 1954 2636 571 387 1419 377 1020 770 1659 757 57 84 1043 1740 511 268 817 2964 525 Wait 3760 | . 30 66 127 123 312 118 122 200 4 47 89 562 79 . 1 54 534 86 35 107 1029 35 Move 20201 | 85 766 1147 3444 1651 2064 414 194 1093 352 956 676 1031 667 52 80 892 1150 413 205 681 1761 427 Hop . | . . . . . . . . . . . . . . . . . . . . . . . Pick Up 192 | 5 29 12 61 20 10 4 7 2 4 4 . 5 1 . 1 6 3 1 3 . 11 3 Fast Attach 147 | 6 1 2 16 12 15 3 2 3 2 . . 14 . . . 8 5 1 11 2 29 15 Attach 54 | 1 3 1 14 10 2 . 2 6 1 1 . 1 1 2 . 1 . . . . 5 3 Detach 17 | . . . 9 1 . . 1 2 . . . . . . . . . . . . 2 2 Swap 148 | 1 8 15 10 20 23 1 2 4 4 . . 10 5 2 1 9 11 4 . 1 13 4 Drop 237 | . 12 17 42 32 19 7 8 2 1 4 . 20 1 . 1 11 6 1 11 1 29 12 Fire 379 | 24 84 41 . 14 19 24 49 103 3 . . 1 3 . . 3 4 . . . 5 2 Melee 482 | . . . 2 69 159 . . 4 6 8 5 15 . 1 . 59 25 5 3 24 80 17 Ram 1 | . . . . . . . . . . . . . . . . . . . . 1 . . Kick 1 | . . . . . . . . . . . . . . . . . . . . . . 1 Crush . | . . . . . . . . . . . . . . . . . . . . . . . Escape Stasis 15 | . . . . . 11 . . . . . . . . . . . . . . . . 4 Rewire 2 | . . . . . 2 . . . . . . . . . . . . . . . . . Trap 4 | . . . . 2 . . . . . . . . . . . . 2 . . . . . Miscellaneous . | . . . . . . . . . . . . . . . . . . . . . . . Route ------- -11/Scrapyard -10/Materials (discovered 6 exits: [*Mat x3] / [*Min x2] / *Sub) -10/Subcaves (discovered 2 exits: [*Mat] / *Scr) -8/Scraptown (discovered 2 exits: *Fac x2) -6/Factory (discovered 7 exits: Fac x3 / *Low x2 / *Ext x2) -6/Extension (discovered 2 exits: *Fac / *Cet) -6/Cetus (discovered 2 exits: *Fac / [*Arc]) -6/Archives (discovered 3 exits: *Fac / *Hub x2) -6/Hub_04(d) (discovered 2 exits: *Fac x2) -5/Factory (discovered 3 exits: *Fac / *Upp x2) -5/Upper Caves -5/Upper Caves (discovered 2 exits: *Fac / *War) -5/Warlord -4/Proximity Caves -4/Factory (discovered 4 exits: Res x2 / Upp / Arm) -4/Waste -4/Factory (discovered 3 exits: *Upp x2 / Arm) -4/Upper Caves -4/Upper Caves -4/Zhirov -3/Proximity Caves -3/Research (discovered 2 exits: *Tes x2) -3/Testing (discovered 1 exit: [*Res]) History --------- Turn | Location | Event 24 | -11/Scrapyard | Discovered new exit (range 15) 212 | -11/Scrapyard | Entered Materials 213 | -10/Materials | Met a group of wandering Federalists 308 | -10/Materials | Build established: Mutant 319 | -10/Materials | Discovered new exit (range 10) 503 | -10/Materials | Discovered new exit (range 13) 547 | -10/Materials | Discovered new exit (range 9) 745 | -10/Materials | Discovered new exit (range 6) 833 | -10/Materials | Discovered new exit (range 15) 952 | -10/Materials | Core integrity fell below 50% 1000 | -10/Materials | Lost 3 parts (2n1w) 1073 | -10/Materials | Discovered new exit (range 15) 1628 | -10/Materials | Entered Subcaves 1629 | -10/Subcaves | Continued accompanying wandering Federalists (5) 1827 | -10/Subcaves | Wandering Federalist uncovered a shortcut to Scraptown 1853 | -10/Subcaves | Ambushed by Subdwellers from Twisted Machinery 2029 | -10/Subcaves | Visited 4L-MR0's lab 2055 | -10/Subcaves | Found Powered Cannon 2180 | -10/Subcaves | Shifting Twisted Machinery released Flamer 2187 | -10/Subcaves | Shifting Twisted Machinery released Sub. Monowheel 2190 | -10/Subcaves | Discovered new exit (range 4) 2233 | -10/Subcaves | A swath of the cavern ceiling suddenly collapsed 2390 | -10/Subcaves | A swath of the cavern ceiling suddenly collapsed 3035 | -10/Subcaves | Core integrity fell below 20% 3105 | -10/Subcaves | Build established: Scavenger-Mutant 3471 | -10/Subcaves | Entered Scraptown 3682 | -8/Scraptown | Discovered new exit (range 11) 3748 | -8/Scraptown | Scanned Subdweller tech in exchange for log data 3751 | -8/Scraptown | Learned location of Extension (-6) 3752 | -8/Scraptown | Learned Factory trap positions 3753 | -8/Scraptown | Learned Research security intel 3756 | -8/Scraptown | Learned location of 1 exit from Factory 3790 | -8/Scraptown | Visited CPS Storage 3808 | -8/Scraptown | Visited CR-KLE's Repair Center 3826 | -8/Scraptown | Visited Bundlers 4169 | -8/Scraptown | Build established: Mutant 4584 | -8/Scraptown | Visited Comm Corps 4703 | -8/Scraptown | Visited Spacefarers 4771 | -8/Scraptown | Visited Science Testing Area 4782 | -8/Scraptown | Visited Junk Repository 4836 | -8/Scraptown | Visited UFD Registry 4836 | -8/Scraptown | Registered with UFD as "Blademech" 4932 | -8/Scraptown | Visited DA-N13 Charitable Foundation 4948 | -8/Scraptown | Found DCF Scrap (32 items) 4983 | -8/Scraptown | Visited Supply Room 5034 | -8/Scraptown | Visited Cartography Club 5053 | -8/Scraptown | Visited Scrapoid Research Area 5093 | -8/Scraptown | Visited Scrap Suit Storage 5141 | -8/Scraptown | Visited Sword Containment 5351 | -8/Scraptown | Visited LU-1G1's Boring Crew 5440 | -8/Scraptown | Visited Abandonware Association 5461 | -8/Scraptown | Learned abandonware demo "ERRANTS.EXE" 5461 | -8/Scraptown | Learned abandonware demo "REBOOT5.EXE" 5499 | -8/Scraptown | Visited Chapter 10 5734 | -8/Scraptown | Discovered new exit (range 5) 5748 | -8/Scraptown | System corruption cleaned by C-Scrubber 5837 | -8/Scraptown | Learned location of Recycling (-8) 5837 | -8/Scraptown | Learned location of Warlord (-5) 5837 | -8/Scraptown | Learned 12 Materials zone layouts 5837 | -8/Scraptown | Learned 16 Materials zone layouts 5837 | -8/Scraptown | Learned 16 Factory zone layouts 5837 | -8/Scraptown | Learned 8 Access zone layouts 5837 | -8/Scraptown | Learned 12 Upper Caves zone layouts 5837 | -8/Scraptown | Learned 16 Proximity Caves zone layouts 5837 | -8/Scraptown | Learned 4 Hub_04(d) zone layouts 5837 | -8/Scraptown | Learned location of 1 exit from Proximity Caves 5837 | -8/Scraptown | Learned location of 2 exits from Proximity Caves 5837 | -8/Scraptown | Learned location of 3 exits from Proximity Caves 5842 | -8/Scraptown | Found Deep Structural Scanner 6051 | -8/Scraptown | Found Prototype Slashing Weapon 7067 | -8/Scraptown | Build established: Derelict-Mutant 7493 | -8/Scraptown | Identified Companion Sword 8663 | -8/Scraptown | CR-KLE repaired 7 parts 9061 | -8/Scraptown | Met Optimus 9061 | -8/Scraptown | Accepted into 0bPrime 9133 | -8/Scraptown | Entered Factory 9133 | -6/Factory | Evolved 8 slots: Propulsion x4, Utility x4 9134 | -6/Factory | Identified exit to Factory 9136 | -6/Factory | Loaded intel: 112 trap records 9454 | -6/Factory | Build established: Derelict-Gladiator 9794 | -6/Factory | Loaded intel: 8 recycling unit locations 9914 | -6/Factory | Build established: Gladiator 10164 | -6/Factory | Lost 3 parts (2n1u) 10466 | -6/Factory | Discovered new exit (range 7) 10606 | -6/Factory | Identified exit to Lower Caves 10606 | -6/Factory | Identified exit to Extension 10808 | -6/Factory | Entered Extension 11233 | -6/Extension | Disrupted transfer network 11370 | -6/Extension | Rescued a captive Derelict 11380 | -6/Extension | Rescued a captive Derelict 11382 | -6/Extension | Rescued a captive Derelict 11499 | -6/Extension | Rescued A7 11562 | -6/Extension | Build established: Hacker-Gladiator 11585 | -6/Extension | Spotted B-75 Beast 11858 | -6/Extension | First assault squad dispatched 11895 | -6/Extension | Spotted B-75 Beast 11900 | -6/Extension | Allies destroyed B-75 Beast 11920 | -6/Extension | Destroyed B-75 Beast 11935 | -6/Extension | Lost 3 allies 12022 | -6/Extension | Lost 6 allies 12203 | -6/Extension | Rescued a captive Derelict 12204 | -6/Extension | Rescued a captive Derelict 12284 | -6/Extension | Rescued a captive Derelict 12284 | -6/Extension | Rescued a captive Derelict 12317 | -6/Extension | Rescued a captive Derelict 12455 | -6/Extension | Discovered exit to Factory (range 10) 12456 | -6/Extension | Discovered new exit (range 6) 12598 | -6/Extension | Loaded intel: 1 recycling unit location 12598 | -6/Extension | Learned location of Protoforge (-2) 12849 | -6/Extension | Attached Powered Cannon, gained temporary slot: Power 12880 | -6/Extension | Build established: Commander-Mutant 12880 | -6/Extension | Entered Cetus 12880 | -6/Cetus | Accompanied by 8 allies (A7) 12885 | -6/Cetus | Acquired a Cetus Manufacturing Module code from A7 12913 | -6/Cetus | Spotted Cetus Guard 12913 | -6/Cetus | Spotted Cetus Guard 12914 | -6/Cetus | Spotted Cetus Guard 12914 | -6/Cetus | Spotted Cetus Guard 12916 | -6/Cetus | Allies destroyed Cetus Guard 12940 | -6/Cetus | Destroyed Cetus Guard 12943 | -6/Cetus | Destroyed Cetus Guard 12945 | -6/Cetus | Destroyed Cetus Guard 12958 | -6/Cetus | Extracted ID and sensor layout for unrecognized location from A7's data core 12972 | -6/Cetus | Lost 7 allies 12998 | -6/Cetus | Started Cetus Manufacturing Module 13006 | -6/Cetus | Discovered new exit (range 15) 13015 | -6/Cetus | Spotted Cetus Guard 13015 | -6/Cetus | Spotted Cetus Guard 13023 | -6/Cetus | Manufactured an Enhanced Grunt 13048 | -6/Cetus | Manufactured an Enhanced Grunt 13061 | -6/Cetus | Spotted Cetus Guard 13071 | -6/Cetus | Allies destroyed Cetus Guard 13073 | -6/Cetus | Manufactured an Enhanced Grunt 13075 | -6/Cetus | Spotted Cetus Guard 13077 | -6/Cetus | Destroyed Cetus Guard 13093 | -6/Cetus | Allies destroyed Cetus Guard 13098 | -6/Cetus | Manufactured an Enhanced Grunt 13111 | -6/Cetus | Discovered exit to Factory (range 15) 13114 | -6/Cetus | Met Revision 17 13123 | -6/Cetus | Manufactured an Enhanced Grunt 13220 | -6/Cetus | Entered Archives 13220 | -6/Archives | Accompanied by 5 allies 13346 | -6/Archives | Core integrity fell below 50% 13423 | -6/Archives | Discovered exit to Factory (range 15) 13479 | -6/Archives | Discovered new exit (range 14) 13505 | -6/Archives | Discovered new exit (range 13) 13591 | -6/Archives | Entered Hub_04(d) 13591 | -6/Hub_04(d) | Accompanied by 5 allies 13645 | -6/Hub_04(d) | Spotted B-75 Beast 13660 | -6/Hub_04(d) | Destroyed B-75 Beast 13837 | -6/Hub_04(d) | Discovered exit to Factory (range 9) 13848 | -6/Hub_04(d) | Central database locked down 13941 | -6/Hub_04(d) | First assault squad dispatched 13996 | -6/Hub_04(d) | Build established: Hacker-Mutant 14050 | -6/Hub_04(d) | Garrison activated, responded to threat 14274 | -6/Hub_04(d) | Disrupted transfer network 14281 | -6/Hub_04(d) | Learned 2 Proximity Caves zone layouts 14290 | -6/Hub_04(d) | Network Hub disabled 14320 | -6/Hub_04(d) | Network Hub disabled 14351 | -6/Hub_04(d) | Lost 6 parts (2n3u1w) 14438 | -6/Hub_04(d) | Network Hub disabled 14446 | -6/Hub_04(d) | Spotted Lightning 14448 | -6/Hub_04(d) | Entered Factory 14448 | -5/Factory | Evolved 2 slots: Power x1, Utility x1 14449 | -5/Factory | Identified exit to Upper Caves 14519 | -5/Factory | Loaded intel: 8 recycling unit locations 14539 | -5/Factory | Central database locked down 14613 | -5/Factory | Discovered new exit (range 21) 14632 | -5/Factory | Entered Upper Caves 14633 | -5/Upper Caves | Identified exit to Upper Caves 14698 | -5/Upper Caves | Encountered a Warlord checkpoint 14746 | -5/Upper Caves | Learned Factory security intel 14818 | -5/Upper Caves | Entered an active Warlord outpost 14824 | -5/Upper Caves | Learned Research trap positions 14824 | -5/Upper Caves | Learned Factory emergency access door positions 14824 | -5/Upper Caves | Learned Extension terminal intel 14824 | -5/Upper Caves | Learned Factory garrison access intel 14824 | -5/Upper Caves | Learned Extension garrison access intel 14895 | -5/Upper Caves | Learned 8 Factory zone layouts 14933 | -5/Upper Caves | Build established: Mutant 15089 | -5/Upper Caves | Entered another Upper Caves area 15111 | -5/Upper Caves | Discovered new exit (range 9) 15372 | -5/Upper Caves | Learned Factory interactive machine intel 15376 | -5/Upper Caves | Discovered new exit (range 22) 15461 | -5/Upper Caves | Entered Warlord 15476 | -5/Warlord | Discovered new exit (range 12) 15695 | -5/Warlord | Warlord's base attacked by MAIN.C 15698 | -5/Warlord | Found Prototype Special Weapon 15698 | -5/Warlord | Identified RU-N14's Throwing Claymores v3 15810 | -5/Warlord | Found Prototype Energy Gun 15810 | -5/Warlord | Identified Vortex Rail 15815 | -5/Warlord | Found Prototype Energy Gun 15815 | -5/Warlord | Identified Vortex Rifle 15840 | -5/Warlord | Rebuked by Warlord 15859 | -5/Warlord | Build established: Commander-Mutant 15869 | -5/Warlord | Found Prototype Device 15869 | -5/Warlord | Identified Thermal Barrier 15872 | -5/Warlord | Found Prototype Processor 15872 | -5/Warlord | Identified Exp. Armor Integrity Analyzer 15890 | -5/Warlord | Found Prototype Reactor 15890 | -5/Warlord | Identified Vortex Chain Reactor 16045 | -5/Warlord | Warlord forces counterattacked 16108 | -5/Warlord | Spotted Striker 16135 | -5/Warlord | Spotted Striker 16154 | -5/Warlord | Spotted Executioner 16171 | -5/Warlord | P-70 Sage assimilated allied V0-J4C(g) 16176 | -5/Warlord | Spotted Striker 16200 | -5/Warlord | Spotted Executioner 16218 | -5/Warlord | Spotted B-86 Titan 16277 | -5/Warlord | Lost 30 allies 16297 | -5/Warlord | Spotted B-75 Beast 16370 | -5/Warlord | Warlord base infiltrated, sounded retreat 16379 | -5/Warlord | Spotted Striker 16393 | -5/Warlord | Spotted Executioner 16460 | -5/Warlord | Spotted Executioner 16461 | -5/Warlord | Allies destroyed Executioner 16507 | -5/Warlord | Spotted Striker 16524 | -5/Warlord | Spotted Striker 16560 | -5/Warlord | Lost 9 allies 16592 | -5/Warlord | Entered Proximity Caves 16592 | -4/Proximity Caves | Accompanied by 3 allies 16593 | -4/Proximity Caves | Identified exit to Factory 16757 | -4/Proximity Caves | Learned 4 Research zone layouts 16835 | -4/Proximity Caves | Build established: Mutant 16991 | -4/Proximity Caves | Attracted the attention of an 0b10 checkpoint 17023 | -4/Proximity Caves | Learned Research stockpile data 17056 | -4/Proximity Caves | Entered Factory 17056 | -4/Factory | Evolved 2 slots: Propulsion x2 17057 | -4/Factory | Identified exit to Research 17057 | -4/Factory | Identified exit to Upper Caves 17057 | -4/Factory | Identified exit to Armory 17061 | -4/Factory | Loaded intel: 54 interactive machine locations 17062 | -4/Factory | Loaded intel: 4 garrison access locations 17079 | -4/Factory | Sucked down chute 17079 | -4/Factory | Entered Waste 17082 | -4/Waste | Spotted C-40 Crusher 17088 | -4/Waste | Spotted C-40 Crusher 17089 | -4/Waste | Spotted C-40 Crusher 17089 | -4/Waste | Spotted C-40 Crusher 17093 | -4/Waste | Spotted C-40 Crusher 17094 | -4/Waste | EMP discharged 17097 | -4/Waste | Spotted C-40 Crusher 17101 | -4/Waste | Discovered new exit (range 13) 17107 | -4/Waste | Entered Factory 17152 | -4/Factory | Loaded intel: 8 recycling unit locations 17229 | -4/Factory | Found Quantum Capacitor 17282 | -4/Factory | System corruption reached 10% 17438 | -4/Factory | Fabricated Graphene Brace? 17568 | -4/Factory | Entered Upper Caves 17577 | -4/Upper Caves | Attacked by a delusional Derelict stockpiling Unaware 17719 | -4/Upper Caves | Identified exit to Upper Caves 17753 | -4/Upper Caves | Entered a destroyed Warlord outpost 17841 | -4/Upper Caves | Build established: Hacker-Sprinter 17949 | -4/Upper Caves | Attracted the attention of an 0b10 checkpoint 18421 | -4/Upper Caves | Entered another Upper Caves area 18424 | -4/Upper Caves | Learned Research stockpile data 18449 | -4/Upper Caves | Learned Research terminal intel 18460 | -4/Upper Caves | Spotted B-86 Titan 18581 | -4/Upper Caves | Discovered new exit (range 19) 18611 | -4/Upper Caves | Entered Zhirov 18611 | -4/Zhirov | Discovered new exit (range 3) 18615 | -4/Zhirov | Met Zhirov 18634 | -4/Zhirov | Learned location of Quarantine (-2) 18634 | -4/Zhirov | Learned location of Testing (-3) 18634 | -4/Zhirov | Learned location of Command (-1) 18636 | -4/Zhirov | Zhirov requested help retrieving the SGEMP Prototype 18647 | -4/Zhirov | Found Alien Artifact 18647 | -4/Zhirov | Identified Integrated Dissipator 18647 | -4/Zhirov | Installed Integrated Dissipator, increased core heat dissipation (+20) 18696 | -4/Zhirov | Found Alien Artifact 18696 | -4/Zhirov | Identified Transdimensional Reconstructor 18696 | -4/Zhirov | Warped through subspace 18714 | -4/Zhirov | Entered Proximity Caves 18926 | -3/Proximity Caves | Lost 4 parts (1p2n1w) 18998 | -3/Proximity Caves | Lost 3 parts (3n) 19078 | -3/Proximity Caves | Entered Research 19078 | -3/Research | Evolved 2 slots: Utility x2 19080 | -3/Research | Loaded intel: 98 trap records 19083 | -3/Research | Loaded intel: 21 terminal locations 19105 | -3/Research | Identified exit to Testing 19162 | -3/Research | Repaired Broken Cld. Antigrav System 19163 | -3/Research | Adv. System Shield fried by hacking feedback 19227 | -3/Research | Build established: Hacker-Mutant 19278 | -3/Research | Revision forces began assault on 0b10 19399 | -3/Research | Met up with Revision 17++ 19529 | -3/Research | Fabricated Graphene Brace? 19670 | -3/Research | Found Prototype Hackware 19670 | -3/Research | Identified Exp. System Shield 19700 | -3/Research | Spotted B-86 Titan 19750 | -3/Research | Loaded intel: 5 recycling unit locations 19778 | -3/Research | Research terminal network offline 19883 | -3/Research | Found Prototype Processor 19883 | -3/Research | Identified Spectral Analyzer 19886 | -3/Research | Found Prototype Device 19886 | -3/Research | Identified Exp. Shield Generator 19914 | -3/Research | Spotted Striker 19935 | -3/Research | Spotted Executioner 19935 | -3/Research | Spotted Striker 20008 | -3/Research | Lost 5 parts (1p3n1w) 20296 | -3/Research | Build established: Hacker-Gladiator 21104 | -3/Research | Spotted Executioner 21105 | -3/Research | Spotted Striker 21105 | -3/Research | Entered Testing 21116 | -3/Testing | Central database locked down 21148 | -3/Testing | Found Prototype Launcher 21148 | -3/Testing | Identified Mni. Smartbomb Launcher 21160 | -3/Testing | Spotted Striker 21294 | -3/Testing | Protovariant out of control (PX-QN77FR3CTG) 21294 | -3/Testing | Unleashed a protovariant (PX-QN77FR3CTG) 21327 | -3/Testing | System corruption reached 10% 21363 | -3/Testing | Lost 5 parts (2p2n1u) 21386 | -3/Testing | Spotted PG-GBQ88SAV0G 21421 | -3/Testing | Core integrity fell below 50% 21446 | -3/Testing | Core integrity fell below 20% 21447 | -3/Testing | Discovered new exit (range 9) 21452 | -3/Testing | Destroyed by H-77 Assassin with Coil Gun Last Messages --------------- 21442_ Penetrated by Slug. 21443_ Dropped Adv. Reaction Control System. 21443_ Exp. Armor Integrity Analyzer destroyed. 21444_ Acquired Enh. Force Lance+. 21445_ Acquired Deep Structural Scanner. 21445_ Penetrated by Slug. 21446_ Imp. Gyrokinetic Inverter destroyed. 21447_ EXIT=FOUND 21447_ Triggered Alarm Trap. 21447_ An alarm sounds. 21447_ ALERT: Alarm triggered, dispatching investigation squad. 21448_ Slug penetrates Wall. 21448_ A-15 Conveyor destroyed. 21448_ Penetrated by Slug. 21451_ Kicked H-77 Assassin. 21451_ Penetrated by Slug. 21451_ Hds. Centrium Leg destroyed. 21451_ Penetrated by Slug. 21452_ Slug penetrates G-67 Veteran. 21452_ Penetrated by Slug. Map ----- +----------------------------------------------------+ | | | | | | | | | | | ?????????????????????????????????????????????????? | | ?????????????????????????????????????????????????? | | ?????????????????????????????????????????????????? | | ?????????????????????????????????????????????????? | | ?????????????????????????????????????????????????? | | ?????????????????????????????????????????????????? | | ?????????????????????????????????????????????????? | | ?????????????????????????????????????????????????? | | ?????????????????????????????????????????????????? | | ?????????????????????????????????????????????????? | | ??###########????????????????????????????????????? | | ??# #????????????????????????????????????? | | ??# """" #?????????????????????########???????? | | ??# ! """" #???????############??########???????? | | ??# """"" #???????##########""??"#######???????? | | ??# """" #???????##########""??"#######???????? | | ??# #???????######### ?? ####???????? | | ?# ##??????#### # ? ####???????? | | ?# "#??????#### g # """ """ ####???????? | | #"##""################ hg # """ """ ####???????? | | *# ! % ##"""""""# @g + """ """ ####???????? | | %+]% %% % ## "" #h g # ####???????? | | #%! %% % ## """" # # ??? ####???????? | | "%% %!%=%% ##" " "" # # ####???????? | | ###"""!"] %%## # #####+########???????? | | ??# # %# % ## # ##### ########???????? | | ???###### #"###"#### ##### ########???????? | | ########## !]!! #######???????? | | / [!=*! ####???????? | | !!===* ####???????? | | "" !=%=! ####???????? | | "" ###########;################???????? | | T" ###### ##########???????? | | "" ###### """ """ "" #######???????? | | "" ###### """ """ """#######???????? | | #?????????"""??????????????????????? | | """ #?????????"""??????????????????????? | | """ #??????????????????????????????????? | | """ ########??????????????????????????????????? | | #?????????????????????????????????????????? | | """ #?????????????????????????????????????????? | | """ #?????????????????????????????????????????? | | """ #?????????????????????????????????????????? | | #?????????????????????????????????????????? | | """ #????????##########???????????????????????? | +----------------------------------------------------+ Best States ------------- Heat Dissipation 85 Coolant Potential 50 Energy Generation 55 Energy Capacity 1050 Matter Stores 300 Matter Capacity 300 Sight Range 24 Terrain Scan Density 10 ECM Strength 2 Armor Coverage 450 Resistance: KI 30 Resistance: TH 50 Resistance: EM 25 Power Shielding 90 Phase Shifting 10 Evasion (%) 76 Melee Accuracy 10 Armor Integrity Analysis 50 Recoil Reduction 2 Offensive Hacking 26 Defensive Hacking 36 Authchip Count 1 Item Schematics ----------------- Hcp. Storage Unit | -10/Materials | Hacked ECM Suite | -10/Materials | Hacked Med. Storage Unit | -6/Factory | Extracted Arm. Leg | -6/Factory | Extracted Adv. Heat Sink | -6/Factory | Extracted System Guard | -6/Factory | Extracted Imp. Gravmag System | -6/Factory | Extracted Lgt. Fission Core | -6/Factory | Extracted Lgt. Angular Momentum Engine | -6/Factory | Extracted Imp. Utility Shielding | -6/Factory | Extracted Hyb. Deuterium Engine | -6/Factory | Scanalyzed Adv. Melee Analysis Suite | -6/Extension | Hacked Imp. Targeting Computer | -5/Factory | Extracted Thermic Laser | -5/Factory | Extracted Imp. Reaction Control System | -5/Factory | Extracted Plasma Cannon | -5/Factory | Extracted Hyb. Fission Core | -5/Factory | Extracted Imp. Signal Interpreter | -5/Factory | Extracted Imp. Core Shielding | -5/Factory | Extracted Remote Datajack | -5/Factory | Extracted Imp. Transmission Jammer | -5/Factory | Extracted Adv. Remote Force Field | -4/Factory | Scanalyzed Graphene Brace | -4/Factory | Extracted Imp. Weapon Cycler | -4/Factory | Extracted Assault Drone Bay | -4/Zhirov | Free Exp. Heat Sink | -4/Zhirov | Free Exp. Optical Array | -4/Zhirov | Free Imp. Arc Thrower | -4/Zhirov | Free Exp. Matter Compressor | -3/Testing | Archive Adv. Matter Compressor | -3/Testing | Archive Cld. Antigrav System | -3/Testing | Archive Helical Railgun | -3/Testing | Archive Diametric Drive | -3/Testing | Archive Robot Schematics ------------------ R-06 Scavenger | -3/Testing | Archive Fabricated ------------ Graphene Brace | x2 | -4/Factory | Authchip Graphene Brace | x2 | -3/Research Repaired ---------- Cld. Antigrav System | 14% | -3/Research | Broken Studied --------- Cmb. Airjet | -6/Factory | Hacked Hyb. Deuterium Engine | -6/Factory | Hacked Imp. Gravmag System | -5/Factory | Hacked Enh. Force Lance | -3/Testing | Hacked Antigrav System | -3/Testing | Hacked Antigrav Array | -3/Testing | Hacked Alien Tech Used ----------------- Integrated Dissipator Transdimensional Reconstructor Achievements -------------- Official Business Strength In Numbers Treasure Hunter Challenges ------------ None Game ------ Seed NuclearJammingNetwork Manual? 0 Play Time 04:44:40 Cumulative 81.5 hours Start 2026.01.31 @ 12:13:45 End 2026.01.31 @ 20:44:17 Sessions 9 Manual Loads 0 Difficulty Rogue Special Mode None Game No. 37 Rogue 37 Adventurer 0 Explorer 0 Win Type - Total 1 Types 1/0/0/0/0/0/0/0/0/0 Lore% 55 Gallery% 60 Achievement% 52 Wizard Run 0 Options --------- Layout 0 ASCII 0 Keyboard 0 Movement Mouse Keybinds 0 Fullscreen 1 Font 24/Smallcaps Map View 183x50 Zoom Use 0% Tactical HUD 1 Map Filters NONE Filters NONE Steam 1 RUN: 15119248-4b27-4a13-9107-f3d7e12c6b52